bitfinex-derivatives/quotes_BTCF0:USTF0_20250318
["timestamp","ask_amount","ask_price","bid_price","bid_amount"]
[1742286985023,0.2475,83458.0,83457.0,0.4921]
[1742286985228,0.002,83458.0,83457.0,0.6119317]
[1742286985929,0.0111226,83458.0,83457.0,0.6119317]
[1742286986231,0.002,83458.0,83457.0,0.6119317]
[1742286988731,0.002,83458.0,83457.0,0.7619317]
[1742286988934,0.1197891,83487.0,83480.0,0.119798]
[1742286989132,0.502,83480.0,83478.0,0.1198002]
[1742286989333,0.622,83480.0,83477.0,0.28516227]
[1742286989533,0.622,83480.0,83477.0,0.1198016]
[1742286989838,0.622,83480.0,83479.0,0.1198001]
[1742286990048,0.12,83480.0,83479.0,0.1198001]
[1742286990940,0.12,83480.0,83479.0,0.01407623]
[1742286991139,0.12,83480.0,83479.0,0.1198001]
[1742286991833,0.12,83480.0,83478.0,0.1198014]
[1742286992037,0.4932,83479.0,83474.0,0.0139283]
[1742286992339,0.4932,83479.0,83473.0,0.7815038]
[1742286992340,0.4932,83479.0,83477.0,0.1198021]
[1742286992532,0.4932,83479.0,83475.0,0.0599029]
[1742286992533,0.4932,83479.0,83473.0,0.7815038]
[1742286992733,0.4932,83479.0,83477.0,0.119802]
[1742286993039,0.4932,83479.0,83478.0,0.1198016]
[1742286994038,0.4932,83479.0,83474.0,0.0138966]
[1742286994235,0.4932,83479.0,83478.0,0.1198016]
[1742286995535,0.1198034,83477.0,83474.0,0.0138318]
[1742286995735,0.5114,83476.0,83473.0,0.8414081]
[1742286995936,0.5114,83476.0,83475.0,0.1198059]
[1742286996145,4e-05,83484.0,83483.0,0.1197944]
[1742286996327,4e-05,83484.0,83483.0,0.4805944]
[1742286996328,0.02004,83484.0,83483.0,0.4805944]
[1742286996531,0.03,83497.0,83486.0,0.1197901]
[1742286996733,0.5118,83499.0,83486.0,0.4805901]
[1742286996943,0.5118,83499.0,83486.0,0.6056701]
[1742286997437,4e-05,83494.0,83486.0,0.6056701]
[1742286998633,4e-05,83494.0,83493.0,0.1197801]
[1742286998838,4e-05,83494.0,83493.0,0.4805801]
[1742286999039,4e-05,83494.0,83493.0,0.6054201]
[1742286999336,4e-05,83494.0,83493.0,0.7554201]
[1742286999541,0.2593,83510.0,83509.0,0.1197571]
[1742286999743,0.2793,83510.0,83509.0,0.4805571]
[1742287002142,0.2793,83510.0,83509.0,0.37436513]
[1742287002341,0.2793,83510.0,83509.0,0.49412223]
[1742287004838,0.3990557,83510.0,83509.0,0.3608]
[1742287005246,0.5224,83510.0,83509.0,0.3608]
[1742287005960,0.7669157,83510.0,83509.0,0.3608]
[1742287007439,0.64716,83510.0,83501.0,0.00017962]
[1742287007639,0.1197671,83502.0,83501.0,0.00017962]
[1742287007837,0.5144071,83502.0,83501.0,0.00017962]
[1742287008049,1.0380071,83502.0,83501.0,0.00017962]
[1742287008451,0.1197757,83496.0,83495.0,0.3608]
[1742287008653,0.3897757,83496.0,83495.0,0.3608]
[1742287009252,0.8990757,83496.0,83495.0,0.3608]
[1742287009457,0.8990757,83496.0,83471.0,0.3608]
[1742287009458,0.1197958,83482.0,83471.0,0.3608]
[1742287009652,0.1198102,83472.0,83471.0,0.37432759]
[1742287009951,0.5042902,83472.0,83471.0,0.3608]
[1742287010656,1.0099902,83472.0,83471.0,0.3608]
[1742287011647,0.89018,83472.0,83471.0,0.3608]
[1742287011847,1.0099902,83472.0,83471.0,0.3608]
[1742287014550,0.8901,83472.0,83471.0,0.3608]
[1742287014748,0.89006,83472.0,83471.0,0.3608]
[1742287014949,0.89886155,83472.0,83471.0,0.3608]
[1742287015754,4e-05,83476.0,83473.0,0.0599041]
[1742287015958,3.958e-05,83480.0,83479.0,0.1198001]
[1742287016153,0.08003958,83480.0,83479.0,0.1198001]
[1742287017158,3.958e-05,83480.0,83479.0,0.2442001]
[1742287017360,3.958e-05,83480.0,83479.0,0.7604001]
[1742287021860,4e-05,83488.0,83487.0,0.1197887]
[1742287022065,0.1197754,83499.0,83498.0,0.11977]
[1742287022266,0.1197754,83499.0,83498.0,0.5404557]
[1742287023063,0.6103754,83499.0,83498.0,0.5404557]
[1742287023556,0.69541667,83499.0,83498.0,0.37442385]
[1742287023761,0.80446182,83499.0,83498.0,0.37442385]
[1742287024360,0.68468642,83499.0,83498.0,0.37442385]
[1742287024555,0.67564127,83499.0,83498.0,0.3608]
[1742287024752,0.67564127,83499.0,83498.0,0.4805729]
[1742287025762,0.68466419,83499.0,83498.0,0.4805729]
[1742287025956,0.80443559,83499.0,83498.0,0.3608]
[1742287026355,0.68466419,83499.0,83498.0,0.3608]
[1742287026665,0.79944127,83499.0,83498.0,0.4805729]
[1742287027163,0.79944127,83499.0,83498.0,1.0007729]
[1742287028465,0.79944127,83499.0,83498.0,0.3608]
[1742287028466,0.92830481,83499.0,83498.0,0.3608]
[1742287031060,0.1197829,83491.0,83490.0,0.00017962]
[1742287031265,0.5233029,83491.0,83490.0,0.00017962]
[1742287031467,1.0091029,83491.0,83490.0,0.00017962]
[1742287031763,1.09414417,83491.0,83490.0,0.00017962]
[1742287032356,0.1197872,83488.0,83481.0,0.3608]
[1742287032562,0.3497872,83488.0,83483.0,0.01361416]
[1742287032751,0.9746,83488.0,83483.0,0.01361416]
[1742287032952,1.11288484,83488.0,83484.0,0.4863]
[1742287033258,1.11288484,83488.0,83485.0,0.1197913]
[1742287033259,0.87018484,83488.0,83485.0,0.1197913]
[1742287033459,0.87018484,83488.0,83484.0,0.4863]
[1742287033654,0.87018484,83488.0,83484.0,0.6060916]
[1742287034360,0.87018484,83488.0,83486.0,0.1197892]
[1742287034557,0.87018484,83488.0,83486.0,0.2395789]
[1742287034759,0.87018484,83488.0,83487.0,0.87]
[1742287034961,0.98997204,83488.0,83487.0,0.87]
[1742287037271,0.48807204,83488.0,83487.0,0.87]
[1742287037769,0.48807204,83488.0,83487.0,0.9897887]
[1742287037962,0.60928484,83488.0,83487.0,0.9897887]
[1742287038161,0.72907204,83488.0,83487.0,0.9897887]
[1742287038757,0.72907204,83488.0,83487.0,0.87]
[1742287038953,0.96977204,83488.0,83487.0,0.87]
[1742287039966,0.96977204,83488.0,83487.0,0.3608]
[1742287042587,0.1197987,83480.0,83470.0,0.3608]
[1742287042864,0.4727587,83480.0,83470.0,0.3608]
[1742287043070,0.61104354,83480.0,83470.0,0.3608]
[1742287043463,0.1198116,83471.0,83470.0,0.3608]
[1742287043661,0.4926916,83471.0,83470.0,0.3608]
[1742287043873,1.0039916,83471.0,83470.0,0.3608]
[1742287044172,1.14227644,83471.0,83470.0,0.3608]
[1742287045367,0.1198231,83463.0,83462.0,0.36097962]
[1742287045573,1.01182794,83463.0,83462.0,0.00017962]
[1742287045877,1.77132794,83463.0,83462.0,0.00017962]
[1742287046169,0.119849,83445.0,83444.0,0.21140243]
[1742287046368,0.522729,83445.0,83444.0,0.21140243]
[1742287046567,1.15531384,83445.0,83444.0,0.21140243]
[1742287046960,0.0599284,83440.0,83436.0,99.79118351]
[1742287047159,0.25814524,83437.0,83436.0,99.79010351]
[1742287047365,0.13810522,83437.0,83436.0,99.90996541]
[1742287047670,0.13810522,83437.0,83436.0,100.28958541]
[1742287047867,0.005,83445.0,83444.0,0.1198504]
[1742287048061,0.12292,83459.0,83446.0,0.0599234]
[1742287048259,0.1198446,83448.0,83447.0,0.2649]
[1742287048465,0.2198446,83448.0,83447.0,0.6257]
[1742287049366,0.7290446,83448.0,83447.0,0.6257]
[1742287049574,0.8518446,83448.0,83447.0,0.6257]
[1742287050068,0.8548446,83448.0,83447.0,0.6257]
[1742287050467,0.7548446,83448.0,83447.0,0.3608]
[1742287050667,1.0068446,83448.0,83447.0,0.3608]
[1742287052375,1.0068446,83448.0,83436.0,99.79118351]
[1742287052376,0.1198604,83437.0,83436.0,99.79118351]
[1742287052677,0.4928604,83437.0,83436.0,100.04340351]
[1742287053264,0.25,83437.0,83436.0,100.04340351]
[1742287053571,0.0599258,83444.0,83437.0,0.1198599]
[1742287053776,0.2897762,83444.0,83443.0,0.3608]
[1742287053976,0.3528904,83444.0,83443.0,0.3608]
[1742287054679,0.8641904,83444.0,83443.0,0.3608]
[1742287054866,0.8641904,83444.0,83443.0,0.4806518]
[1742287054867,0.112,83444.0,83443.0,0.4806518]
[1742287055073,0.12508,83444.0,83443.0,0.4806518]
[1742287055273,0.12708,83444.0,83443.0,0.4806518]
[1742287055478,0.12708,83444.0,83443.0,0.9930518]
[1742287056276,0.13108,83444.0,83443.0,0.9930518]
[1742287057582,0.2509304,83444.0,83443.0,0.9930518]
[1742287058976,0.1278504,83444.0,83443.0,0.9930518]
[1742287059866,0.1278504,83444.0,83443.0,0.8732]
[1742287060271,0.3578504,83444.0,83443.0,0.6258]
[1742287060567,0.8791504,83444.0,83443.0,0.6258]
[1742287063075,0.13096,83444.0,83443.0,0.7456518]
[1742287063472,0.008,83444.0,83443.0,0.7456518]
[1742287063669,0.008,83444.0,83443.0,0.6258]
[1742287063879,0.008,83444.0,83443.0,0.7456518]
[1742287064184,0.3978504,83444.0,83443.0,0.6258]
[1742287064386,0.2506904,83444.0,83443.0,0.6258]
[1742287064677,0.8761904,83444.0,83443.0,0.3608]
[1742287064883,1.1333904,83444.0,83443.0,0.3608]
[1742287072592,0.119859,83438.0,83437.0,0.2573]
[1742287072786,0.389859,83438.0,83437.0,0.2573]
[1742287073087,0.898159,83438.0,83437.0,0.2573]
[1742287074576,0.900159,83438.0,83437.0,0.2573]
[1742287074779,0.39412,83438.0,83437.0,0.5024]
[1742287074988,0.39612,83438.0,83437.0,0.5024]
[1742287075192,0.274,83438.0,83437.0,0.6222604]
[1742287075581,0.274,83438.0,83437.0,0.5024]
[1742287075981,0.274,83438.0,83437.0,0.6222604]
[1742287076690,0.274,83438.0,83437.0,0.5024]
[1742287077283,0.393859,83438.0,83437.0,0.5024]
[1742287077577,0.898559,83438.0,83437.0,0.5024]
[1742287080385,0.898559,83438.0,83437.0,0.2573]
[1742287080689,0.1198604,83437.0,83436.0,99.79118351]
[1742287080883,0.3898604,83437.0,83436.0,99.79010351]
[1742287081089,0.9190604,83437.0,83436.0,99.79010351]
[1742287081581,0.9190604,83437.0,83436.0,99.72263194]
[1742287082087,0.9210604,83437.0,83436.0,99.72263194]
[1742287082386,1.0710604,83437.0,83436.0,99.65515039]
[1742287082985,1.0897069,83437.0,83436.0,99.65515039]
[1742287083693,0.9397069,83437.0,83436.0,99.65515039]
[1742287084092,0.9407069,83437.0,83436.0,99.65515039]
[1742287084493,0.9417069,83437.0,83436.0,99.65515039]
[1742287084693,0.9250604,83437.0,83436.0,99.65515039]
[1742287088398,0.9250604,83437.0,83436.0,99.61316806]
[1742287088795,0.9250604,83437.0,83436.0,99.57118573]
[1742287089701,1.4388604,83437.0,83436.0,99.49413396]
[1742287090098,1.4388604,83437.0,83436.0,96.04615163]
[1742287090300,1.4388604,83437.0,83436.0,96.00760163]
[1742287090301,1.8525604,83437.0,83436.0,96.00760163]
[1742287090500,1.8525604,83437.0,83436.0,95.9656193]
[1742287090699,1.9709204,83437.0,83436.0,95.9656193]
[1742287090901,1.9759204,83437.0,83436.0,95.92363697]
[1742287091303,1.9759204,83437.0,83436.0,95.88165464]
[1742287091508,1.9758804,83437.0,83436.0,95.88165464]
[1742287091701,1.99243554,83437.0,83436.0,95.88165464]
[1742287092703,1.99243554,83437.0,83436.0,95.81416631]
[1742287093609,1.99243554,83437.0,83436.0,95.74667849]
[1742287094908,2.19145554,83437.0,83436.0,95.70468951]
[1742287095119,2.19145554,83437.0,83436.0,95.68052851]
[1742287095311,2.19145554,83437.0,83436.0,95.63853953]
[1742287095706,2.19145554,83437.0,83436.0,95.59655055]
[1742287096111,2.19145554,83437.0,83436.0,95.55456157]
[1742287096607,2.07021554,83437.0,83436.0,95.51257259]
[1742287096914,2.19137554,83437.0,83436.0,95.51257259]
[1742287097909,2.19137554,83437.0,83436.0,95.47058361]
[1742287098214,2.19037554,83437.0,83436.0,95.47058361]
[1742287098414,2.19037554,83437.0,83436.0,95.42859463]
[1742287098712,2.19037554,83437.0,83436.0,95.30411605]
[1742287099101,2.18537554,83437.0,83436.0,95.26212707]
[1742287099307,2.19037554,83437.0,83436.0,95.26212707]
[1742287099509,2.19037554,83437.0,83436.0,95.22013809]
[1742287099909,2.19037554,83437.0,83436.0,95.17814911]
[1742287100419,2.19037554,83437.0,83436.0,95.13615517]
[1742287100607,2.19037554,83437.0,83436.0,95.08861617]
[1742287100807,2.19037554,83437.0,83436.0,95.04662223]
[1742287101007,1.77667554,83437.0,83436.0,95.04662223]
[1742287101212,1.77667554,83437.0,83436.0,95.00462829]
[1742287101616,1.77667554,83437.0,83436.0,94.96263435]
[1742287102008,1.77667554,83437.0,83436.0,94.92064041]
[1742287102416,1.77667554,83437.0,83436.0,94.85443547]
[1742287102623,1.77667554,83437.0,83436.0,94.78693702]
[1742287102810,1.77667554,83437.0,83436.0,94.35843283]
[1742287103215,1.77667554,83437.0,83436.0,94.31643889]
[1742287103603,1.77667554,83437.0,83436.0,94.27444495]
[1742287104009,1.77667554,83437.0,83436.0,94.1649522]
[1742287104416,1.77667554,83437.0,83436.0,94.12295826]
[1742287104613,1.77667554,83437.0,83436.0,93.85067156]
[1742287104809,0.7984504,83431.0,83406.0,0.2552]
[1742287105012,0.1199036,83407.0,83406.0,0.2552]
[1742287105217,0.4906236,83407.0,83406.0,0.2552]
[1742287105411,0.7486236,83407.0,83406.0,0.2552]
[1742287107025,1.01703419,83407.0,83406.0,0.10413819]
[1742287108018,0.90031419,83407.0,83406.0,0.06213488]
[1742287108215,1.02091419,83407.0,83406.0,0.06213488]
[1742287108415,1.02591419,83407.0,83406.0,0.06213488]
[1742287109920,1.02191419,83407.0,83406.0,0.06213488]
[1742287110131,1.02691419,83407.0,83406.0,0.06213488]
[1742287110627,1.03577808,83407.0,83406.0,0.06213488]
[1742287111523,0.50932749,83407.0,83406.0,0.06213488]
[1742287112223,0.38876749,83407.0,83406.0,0.06213488]
[1742287112426,0.50928749,83407.0,83406.0,0.06213488]
[1742287118331,0.119905,83406.0,83405.0,0.12803488]
[1742287118528,0.399905,83406.0,83405.0,0.12803488]
[1742287119526,0.404905,83406.0,83405.0,0.12803488]
[1742287119731,0.409905,83406.0,83405.0,0.12803488]
[1742287120830,0.671605,83406.0,83405.0,0.12803488]
[1742287121335,0.921305,83406.0,83405.0,0.12803488]
[1742287121743,0.409905,83406.0,83405.0,0.12803488]
[1742287122624,0.529825,83406.0,83405.0,0.12803488]
[1742287123832,0.409905,83406.0,83405.0,0.12803488]
[1742287124028,0.529705,83406.0,83405.0,0.12803488]
[1742287125636,0.795905,83406.0,83405.0,0.12803488]
[1742287126330,1.053205,83406.0,83405.0,0.12803488]
[1742287127336,0.529705,83406.0,83405.0,0.12803488]
[1742287127727,0.779305,83406.0,83405.0,0.12803488]
[1742287128034,1.042505,83406.0,83405.0,0.12803488]
[1742287128836,0.922705,83406.0,83405.0,0.12803488]
[1742287129038,1.042425,83406.0,83405.0,0.12803488]
[1742287130537,0.1199093,83403.0,83402.0,0.3608]
[1742287130730,0.3599093,83403.0,83402.0,0.3608]
[1742287130925,0.6109093,83403.0,83402.0,0.3608]
[1742287131936,0.6159093,83403.0,83402.0,0.6055]
[1742287132140,0.7404293,83403.0,83402.0,0.6055]
[1742287132733,0.4894293,83403.0,83402.0,0.6055]
[1742287133333,1.0959293,83403.0,83402.0,0.1055]
[1742287133536,0.7307093,83403.0,83402.0,0.1055]
[1742287133741,0.8502693,83403.0,83402.0,0.1055]
[1742287135538,0.7307093,83403.0,83402.0,0.1055]
[1742287135726,0.8502293,83403.0,83402.0,0.1055]
[1742287136733,0.7307093,83403.0,83402.0,0.1055]
[1742287136938,0.1196,83406.0,83402.0,0.1055]
[1742287137234,0.1199079,83404.0,83403.0,0.2518]
[1742287137434,0.3799079,83404.0,83403.0,0.2518]
[1742287137738,0.8791079,83404.0,83403.0,0.2518]
[1742287138933,0.8841079,83404.0,83403.0,0.2518]
[1742287139133,0.8841079,83404.0,83400.0,93.86220062]
[1742287139134,0.1199122,83401.0,83400.0,93.86220062]
[1742287139333,0.4993922,83401.0,83400.0,93.86112062]
[1742287139537,1.0203922,83401.0,83400.0,93.86112062]
[1742287139738,1.0203922,83401.0,83400.0,94.11072062]
[1742287140242,1.0203922,83401.0,83400.0,94.04321991]
[1742287140831,1.0243922,83401.0,83400.0,94.04321991]
[1742287141032,0.9049122,83401.0,83400.0,94.04321991]
[1742287141230,0.5035922,83401.0,83400.0,94.04321991]
[1742287141431,0.5075922,83401.0,83400.0,94.04321991]
[1742287146445,0.3879122,83401.0,83400.0,94.04321991]
[1742287146648,0.1198,83407.0,83400.0,94.04321991]
[1742287146843,0.0599525,83406.0,83403.0,0.3608]
[1742287147045,0.1199079,83404.0,83403.0,0.3608]
[1742287147234,4e-05,83410.0,83403.0,0.3608]
[1742287147442,0.01004,83410.0,83403.0,0.3608]
[1742287147748,0.11997974,83415.0,83404.0,0.0599538]
[1742287147951,0.11997974,83415.0,83403.0,0.3608]
[1742287147952,0.5084,83418.0,83410.0,0.3608]
[1742287148149,0.02,83428.0,83417.0,0.3608]
[1742287148150,0.11984,83423.0,83417.0,0.3608]
[1742287148445,0.1198877,83418.0,83417.0,0.3608]
[1742287148641,0.2198877,83418.0,83417.0,0.3608]
[1742287148841,0.7415877,83418.0,83417.0,0.3608]
[1742287149856,0.1198964,83412.0,83410.0,0.3608]
[1742287150143,0.7614778,83411.0,83410.0,0.3608]
[1742287150350,0.1199093,83403.0,83402.0,0.2509]
[1742287150548,0.2199093,83403.0,83402.0,0.2509]
[1742287150741,0.7278093,83403.0,83402.0,0.2509]
[1742287152552,0.2199093,83403.0,83402.0,0.2509]
[1742287152753,0.09,83403.0,83402.0,0.2509]
[1742287153150,0.1198994,83410.0,83403.0,0.0599546]
[1742287153358,0.11,83410.0,83407.0,0.1798539]
[1742287153551,0.11,83410.0,83408.0,0.1199018]
[1742287153856,0.11,83410.0,83408.0,0.239803]
[1742287154055,0.11,83410.0,83409.0,0.1199007]
[1742287154252,0.113,83410.0,83408.0,0.2398029]
[1742287154557,0.003,83410.0,83409.0,0.1199007]
[1742287154755,0.009,83410.0,83409.0,0.1199007]
[1742287155167,0.109,83410.0,83409.0,0.1199007]
[1742287155658,0.009,83410.0,83409.0,0.1199007]
[1742287155960,0.009,83410.0,83407.0,0.1199033]
[1742287156456,0.009,83410.0,83407.0,0.1199034]
[1742287157159,0.2448,83410.0,83407.0,0.1199034]
[1742287157358,0.2448,83410.0,83408.0,0.2432]
[1742287157750,0.2448,83410.0,83409.0,0.1199007]
[1742287158059,0.3348,83410.0,83408.0,0.2432]
[1742287158261,0.258,83409.0,83408.0,0.2432]
[1742287158455,0.358,83409.0,83408.0,0.2432]
[1742287158760,0.6122,83409.0,83408.0,0.3631021]
[1742287159555,0.5122,83409.0,83408.0,0.3631021]
[1742287159757,0.5122,83409.0,83408.0,0.2432]
[1742287159958,0.7421007,83409.0,83408.0,0.2432]
[1742287160348,0.6351007,83409.0,83403.0,0.11964]
[1742287160560,0.1199116,83402.0,83400.0,93.79477991]
[1742287160752,0.6503122,83401.0,83400.0,93.79361991]
[1742287160951,0.7603122,83401.0,83400.0,93.79361991]
[1742287161153,1.0124122,83401.0,83400.0,93.79361991]
[1742287161858,0.9024122,83401.0,83400.0,93.79361991]
[1742287162058,0.8825,83401.0,83400.0,93.79361991]
[1742287162661,0.8855,83401.0,83400.0,93.79361991]
[1742287163358,0.15,83414.0,83408.0,0.1199021]
[1742287163563,0.4888,83412.0,83409.0,0.2451]
[1742287163762,0.5888,83412.0,83411.0,0.1198978]
[1742287164159,0.4888,83412.0,83411.0,0.3649978]
[1742287164355,0.5988,83412.0,83411.0,0.3649978]
[1742287164565,0.5988,83412.0,83404.0,0.3608]
[1742287164762,0.1199036,83407.0,83404.0,0.3608]
[1742287164953,0.5487525,83406.0,83404.0,0.3608]
[1742287165157,0.7187056,83406.0,83404.0,0.3608]
[1742287165360,0.7087056,83406.0,83404.0,0.3608]
[1742287165762,0.1199064,83405.0,83404.0,0.3608]
[1742287165962,0.3397064,83405.0,83404.0,0.3608]
[1742287166163,0.7376064,83405.0,83404.0,0.3608]
[1742287166353,0.8376064,83405.0,83404.0,0.3608]
[1742287167257,0.1199122,83401.0,83400.0,93.79477991]
[1742287167459,0.2199122,83401.0,83400.0,93.79361991]
[1742287167673,0.7125122,83401.0,83400.0,93.79361991]
[1742287182874,0.7125122,83401.0,83400.0,93.72610747]
[1742287183268,0.7125122,83401.0,83400.0,93.68410629]
[1742287183475,0.7125122,83401.0,83400.0,93.61659308]
[1742287183774,0.7125122,83401.0,83400.0,93.5745919]
[1742287184163,0.7125122,83401.0,83400.0,93.5700919]
[1742287184478,0.7125122,83401.0,83400.0,93.52809072]
[1742287184866,0.8317122,83401.0,83400.0,93.52809072]
[1742287185067,0.7125122,83401.0,83400.0,93.52809072]
[1742287185267,0.8346722,83401.0,83400.0,93.52809072]
[1742287185471,0.7155122,83401.0,83400.0,93.52809072]
[1742287185869,0.8346322,83401.0,83400.0,93.52809072]
[1742287190379,0.7155122,83401.0,83400.0,93.52809072]
[1742287190582,0.8344722,83401.0,83400.0,93.78799072]
[1742287192699,0.8343522,83401.0,83400.0,93.78799072]
[1742287192985,0.8343522,83401.0,83400.0,94.03859072]
[1742287195003,0.02,83401.0,83400.0,94.39939072]
[1742287195293,0.1188,83414.0,83400.0,94.54939072]
[1742287195490,4e-05,83405.0,83404.0,0.16536067]
[1742287195695,0.10004,83405.0,83400.0,94.76127072]
[1742287195878,0.1,83405.0,83401.0,0.2398]
[1742287196078,0.1787468,83414.0,83401.0,0.2398]
[1742287196284,0.3486935,83414.0,83413.0,0.3608]
[1742287196488,0.2328935,83414.0,83413.0,0.3608]
[1742287197280,0.4736935,83414.0,83413.0,0.3608]
[1742287198090,0.2328935,83414.0,83413.0,0.3608]
[1742287198590,0.2298935,83414.0,83413.0,0.3608]
[1742287198788,0.7375935,83414.0,83413.0,0.3608]
[1742287202598,0.1199093,83403.0,83402.0,0.2445]
[1742287202791,0.1199107,83402.0,83401.0,0.2398]
[1742287203000,0.9291107,83402.0,83401.0,0.2398]
[1742287203185,0.1199122,83401.0,83400.0,93.52917072]
[1742287203387,0.6597122,83401.0,83400.0,93.52809072]
[1742287203583,1.19180647,83401.0,83400.0,93.52809072]
[1742287203784,1.1789122,83401.0,83400.0,93.52809072]
[1742287203998,1.0485122,83401.0,83400.0,93.52809072]
[1742287204590,1.0485122,83401.0,83400.0,93.78179072]
[1742287204800,1.0515122,83401.0,83400.0,93.78179072]
[1742287204989,1.0515122,83401.0,83400.0,93.52809072]
[1742287205398,1.0515122,83401.0,83400.0,93.46058256]
[1742287205996,1.0515122,83401.0,83400.0,93.39306911]
[1742287207893,1.2015122,83401.0,83400.0,92.88057149]
[1742287208293,1.1985122,83401.0,83400.0,92.8385757]
[1742287208492,1.2015122,83401.0,83400.0,92.8385757]
[1742287208692,1.2015122,83401.0,83400.0,92.79657991]
[1742287209007,1.2015122,83401.0,83400.0,92.75458412]
[1742287209499,1.2015122,83401.0,83400.0,92.71258833]
[1742287209904,1.2015122,83401.0,83400.0,92.67059254]
[1742287210288,1.2015122,83401.0,83400.0,92.62859675]
[1742287211688,1.2013122,83401.0,83400.0,92.62859675]
[1742287212299,1.9229122,83401.0,83400.0,92.62859675]
[1742287212801,2.3366122,83401.0,83400.0,92.62859675]
[1742287213606,2.3366122,83401.0,83400.0,92.58658411]
[1742287217499,2.35340641,83401.0,83400.0,92.58658411]
[1742287217706,2.20340641,83401.0,83400.0,92.58658411]
[1742287217894,2.20340641,83401.0,83400.0,92.45153443]
[1742287218099,2.20340641,83401.0,83400.0,92.40952179]
[1742287220005,2.20340641,83401.0,83400.0,92.2729711]
[1742287221313,2.20340641,83401.0,83400.0,92.19044046]
[1742287224112,2.20340641,83401.0,83400.0,92.14842446]
[1742287225110,2.1866122,83401.0,83400.0,92.14842446]
[1742287228611,2.1866122,83401.0,83400.0,92.08089958]
[1742287229120,2.0674122,83401.0,83400.0,92.08089958]
[1742287229308,2.1857322,83401.0,83400.0,92.08089958]
[1742287233013,2.20105593,83401.0,83400.0,92.01337525]
[1742287233617,2.20105593,83401.0,83400.0,91.84831555]
[1742287234214,2.20105593,83401.0,83400.0,91.79429591]
[1742287234612,2.20105593,83401.0,83400.0,91.75228188]
[1742287235008,2.1857322,83401.0,83400.0,91.65474496]
[1742287235223,2.1857322,83401.0,83400.0,91.58871997]
[1742287235812,2.1857322,83401.0,83400.0,91.49118311]
[1742287239023,2.1857322,83401.0,83400.0,91.71488311]
[1742287239427,2.1852122,83401.0,83400.0,91.71488311]
[1742287240617,2.1852122,83401.0,83400.0,0.1053188]
[1742287240928,2.1852122,83401.0,83399.0,0.3594729]
[1742287241127,0.1199136,83400.0,83399.0,0.26193614]
[1742287241318,0.3599136,83400.0,83399.0,0.14467154]
[1742287241518,0.5996328,83392.0,83376.0,0.3608]
[1742287241717,0.1199467,83377.0,83376.0,0.3608]
[1742287241926,0.4976267,83377.0,83376.0,0.3608]
[1742287243423,0.1199582,83369.0,83368.0,0.01341412]
[1742287243616,0.5175582,83369.0,83368.0,0.01341412]
[1742287243929,0.5165582,83369.0,83368.0,0.01341412]
[1742287244133,0.52547228,83369.0,83368.0,0.01341412]
[1742287244627,0.52547228,83369.0,83368.0,0.01441412]
[1742287246433,0.52547228,83369.0,83368.0,0.00117985]
[1742287246633,0.52547228,83369.0,83368.0,0.00317985]
[1742287246823,0.74987228,83369.0,83368.0,0.00317985]
[1742287247024,0.98974295,83369.0,83368.0,0.00317985]
[1742287247334,0.98974295,83369.0,83368.0,0.0010518]
[1742287247735,0.119964,83365.0,83364.0,0.1642]
[1742287247927,0.399964,83365.0,83364.0,0.1642]
[1742287248233,0.399964,83365.0,83327.0,0.1200179]
[1742287248234,0.1199841,83351.0,83345.0,0.3608]
[1742287248533,0.5176641,83351.0,83345.0,0.3608]
[1742287248729,0.5176641,83351.0,83346.0,0.2131]
[1742287248916,0.5176641,83351.0,83350.0,0.37330876]
[1742287249338,0.5176641,83351.0,83350.0,0.3608]
[1742287249833,0.9614641,83351.0,83350.0,0.3608]
[1742287251122,0.9644641,83351.0,83350.0,0.3608]
[1742287251527,0.9674641,83351.0,83350.0,0.3608]
[1742287251926,0.1199899,83347.0,83346.0,0.2131]
[1742287252127,0.3899899,83347.0,83346.0,0.2211]
[1742287252434,0.1199956,83343.0,83342.0,0.00017996]
[1742287252622,0.4974756,83343.0,83342.0,0.00017996]
[1742287252829,0.9404756,83343.0,83342.0,0.00017996]
[1742287253136,0.95298247,83343.0,83342.0,0.00017996]
[1742287254131,0.95298247,83343.0,83333.0,0.3608]
[1742287254132,0.06,83340.0,83333.0,0.3608]
[1742287254431,0.1200086,83334.0,83333.0,0.3608]
[1742287254634,0.5174486,83334.0,83333.0,0.3608]
[1742287254830,0.9041486,83334.0,83333.0,0.3608]
[1742287256939,0.9081486,83334.0,83333.0,0.3608]
[1742287257639,0.9131486,83334.0,83333.0,0.3608]
[1742287259242,0.1200144,83330.0,83329.0,4e-05]
[1742287259446,0.4000144,83330.0,83329.0,4e-05]
[1742287259646,0.7387144,83330.0,83329.0,4e-05]
[1742287260259,0.1200201,83326.0,83325.0,0.00017996]
[1742287260446,0.5173001,83326.0,83325.0,0.00017996]
[1742287261145,0.6879001,83326.0,83325.0,0.00017996]
[1742287261547,0.70070391,83326.0,83325.0,0.00017996]
[1742287261741,0.6879001,83326.0,83325.0,0.00017996]
[1742287262050,0.6899001,83326.0,83325.0,0.00017996]
[1742287262243,0.87183244,83326.0,83325.0,0.00017996]
[1742287262445,0.87383244,83326.0,83325.0,0.00017996]
[1742287265939,1.04713244,83326.0,83325.0,0.00017996]
[1742287268843,0.87347244,83326.0,83325.0,0.00017996]
[1742287269044,0.87347244,83326.0,83325.0,0.16957996]
[1742287269846,0.75655244,83326.0,83325.0,0.16957996]
[1742287270048,0.01,83339.0,83325.0,0.68037996]
[1742287270245,0.1600014,83339.0,83338.0,0.3608]
[1742287270456,0.2768814,83339.0,83338.0,0.3608]
[1742287270752,0.3468814,83339.0,83338.0,0.3608]
[1742287270954,0.3368814,83339.0,83338.0,0.3608]
[1742287271553,0.3388814,83339.0,83338.0,0.3608]
[1742287271771,0.3388414,83339.0,83338.0,0.3608]
[1742287271947,0.11884,83339.0,83338.0,0.3608]
[1742287272143,0.3388414,83339.0,83338.0,0.3608]
[1742287272949,0.3418414,83339.0,83338.0,0.3608]
[1742287273853,0.35165935,83339.0,83338.0,0.3608]
[1742287275259,0.68785935,83339.0,83338.0,0.3608]
[1742287275648,0.68785935,83339.0,83338.0,0.37335779]
[1742287278066,0.85895935,83339.0,83338.0,0.01255779]
[1742287278257,0.12001,83333.0,83332.0,0.3608]
[1742287278453,0.50673,83333.0,83332.0,0.3608]
[1742287278757,0.85353,83333.0,83332.0,0.3608]
[1742287279156,0.86630076,83333.0,83332.0,0.3608]
[1742287279352,0.1200158,83329.0,83328.0,0.01301306]
[1742287279659,0.4000158,83329.0,83328.0,0.01301306]